fUST/lending_fUST_20250206
["ID","MTS","AMOUNT","RATE_DAILY","PERIOD"]
[351751393,1738776649384,-209.709451,0.00015181,2]
[351751394,1738776649393,-500.0,0.00015181,2]
[351751395,1738776649403,-500.0,0.00015181,2]
[351751396,1738776649413,-818.55,0.00015181,2]
[351751397,1738776649423,-500.0,0.00015181,2]
[351751398,1738776649433,-514.93,0.00015181,2]
[351751399,1738776649443,-1094.31,0.00015181,2]
[351751400,1738776649453,-194.32912,0.00015181,2]
[351751401,1738776649464,-645.81,0.00015181,2]
[351751402,1738776649474,-500.0,0.00015181,2]
[351751403,1738776649484,-2968.11,0.00015181,2]
[351751404,1738776649494,-500.0,0.00015181,2]
[351751405,1738776649507,-500.0,0.00015181,2]
[351751406,1738776649517,-629.9,0.00015181,2]
[351751407,1738776649528,-1878.06,0.00015181,2]
[351751408,1738776649538,-1406.55,0.00015181,2]
[351751409,1738776649548,-559.73,0.00015181,2]
[351751410,1738776649558,-500.0,0.00015181,2]
[351751411,1738776649568,-500.0,0.00015181,2]
[351751412,1738776649579,-542.27,0.00015181,2]
[351751413,1738776649589,-818.64,0.00015181,2]
[351751414,1738776649599,-500.0,0.00015181,2]
[351751415,1738776649609,-3828.38,0.00015181,2]
[351751416,1738776649620,-1220.28,0.00015181,2]
[351751417,1738776649630,-151.0,0.00015182,2]
[351751418,1738776649640,-151.0,0.00015182,2]
[351751419,1738776649650,-151.0,0.00015182,2]
[351751420,1738776649660,-258.04547225,0.00015183,2]
[351751421,1738776649670,-436.66818008,0.00015183,2]
[351751422,1738776649680,-500.0,0.00015183,2]
[351751423,1738776649691,-505.12203579,0.00015183,2]
[351751424,1738776649702,-569.53726686,0.00015183,2]
[351751425,1738776649712,-500.0,0.00015183,2]
[351751426,1738776649722,-500.0,0.00015183,2]
[351751427,1738776649733,-1665.0,0.00015183,2]
[351751428,1738776649743,-500.0,0.00015183,2]
[351751429,1738776649754,-613.63,0.00015183,2]
[351751430,1738776649764,-500.0,0.00015183,2]
[351751431,1738776649774,-500.0,0.00015183,2]
[351751432,1738776649784,-500.0,0.00015183,2]
[351751433,1738776649794,-1023.08,0.00015183,2]
[351751434,1738776649803,-500.0,0.00015183,2]
[351751435,1738776649813,-1941.2,0.00015183,2]
[351751436,1738776649823,-725.72,0.00015183,2]
[351751437,1738776649833,-500.0,0.00015183,2]
[351751438,1738776649843,-591.57814628,0.00015183,2]
[351751439,1738776649854,-519.97,0.00015183,2]
[351751440,1738776649863,-500.0,0.00015183,2]
[351751441,1738776649873,-1000.0,0.00015183,2]
[351751442,1738776649883,-500.0,0.00015183,2]
[351751443,1738776649893,-500.0,0.00015183,2]
[351751444,1738776649902,-500.0,0.00015183,2]
[351751445,1738776649912,-500.0,0.00015183,2]
[351751446,1738776649922,-500.0,0.00015183,2]
[351751447,1738776649937,-500.0,0.00015183,2]
[351751448,1738776649946,-500.0,0.00015183,2]
[351751449,1738776649955,-500.0,0.00015183,2]
[351751450,1738776649966,-347.86449026,0.00015183,2]
[351751451,1738776649976,-500.0,0.00015183,2]
[351751452,1738776649986,-998.54,0.00015183,2]
[351751453,1738776649995,-500.0,0.00015183,2]
[351751454,1738776650007,-500.0,0.00015183,2]
[351751455,1738776650016,-500.0,0.00015183,2]
[351751456,1738776650026,-500.0,0.00015183,2]
[351751457,1738776650035,-500.0,0.00015183,2]
[351751458,1738776650045,-500.0,0.00015183,2]
[351751459,1738776650054,-500.0,0.00015183,2]
[351751460,1738776650064,-500.0,0.00015183,2]
[351751461,1738776650074,-500.0,0.00015183,2]
[351751462,1738776650084,-500.0,0.00015183,2]
[351751463,1738776650093,-1063.21,0.00015183,2]
[351751464,1738776650103,-607.46858783,0.00015183,2]
[351751465,1738776650113,-500.0,0.00015183,2]
[351751466,1738776650123,-505.16,0.00015183,2]
[351751467,1738776650132,-500.0,0.00015183,2]
[351751468,1738776650142,-500.0,0.00015183,2]
[351751469,1738776650151,-500.0,0.00015183,2]
[351751470,1738776650160,-500.0,0.00015183,2]
[351751471,1738776650170,-1408.08,0.00015183,2]
[351751472,1738776650179,-500.0,0.00015183,2]
[351751473,1738776650188,-500.0,0.00015183,2]
[351751474,1738776650198,-500.0,0.00015183,2]
[351751475,1738776650207,-500.0,0.00015183,2]
[351751476,1738776650218,-801.8,0.00015183,2]
[351751477,1738776650228,-500.0,0.00015183,2]
[351751478,1738776650238,-500.0,0.00015183,2]
[351751479,1738776650247,-1010.74,0.00015183,2]
[351751480,1738776650258,-500.0,0.00015183,2]
[351751481,1738776650268,-511.67033962,0.00015183,2]
[351751482,1738776650278,-582.25,0.00015183,2]
[351751483,1738776650288,-500.0,0.00015183,2]
[351751484,1738776650298,-500.0,0.00015183,2]
[351751485,1738776650307,-510.55742378,0.00015183,2]
[351751486,1738776650317,-500.0,0.00015183,2]
[351751487,1738776650327,-500.0,0.00015183,2]
[351751488,1738776650337,-151.0,0.00015183,2]
[351751489,1738776650347,-151.0,0.00015183,2]
[351751490,1738776650357,-156.153266,0.00015183,2]
[351751491,1738776650367,-156.153266,0.00015183,2]
[351751492,1738776650377,-151.0,0.00015183,2]
[351751493,1738776650389,-151.0,0.00015183,2]
[351751494,1738776650400,-151.0,0.00015183,2]
[351751495,1738776650409,-151.0,0.00015183,2]
[351751496,1738776650419,-153.0,0.00015184,2]
[351751497,1738776650429,-153.0,0.00015184,2]
[351751498,1738776650439,-153.0,0.00015184,2]
[351751499,1738776650450,-153.0,0.00015184,2]
[351751500,1738776650460,-153.0,0.00015184,2]
[351751501,1738776650471,-153.0,0.00015184,2]
[351751502,1738776650482,-153.0,0.00015184,2]
[351751503,1738776650492,-153.0,0.00015184,2]
[351751504,1738776650502,-153.0,0.00015184,2]
[351751505,1738776650512,-153.0,0.00015184,2]
[351751506,1738776650521,-153.0,0.00015184,2]
[351751507,1738776650531,-153.0,0.00015184,2]
[351751508,1738776650541,-153.0,0.00015184,2]
[351751509,1738776650551,-357.336794,0.00015185,2]
[351751510,1738776650561,-151.0,0.00015185,2]
[351751511,1738776650571,-500.0,0.00015185,2]
[351751512,1738776650580,-500.0,0.00015185,2]
[351751513,1738776650590,-500.0,0.00015185,2]
[351751514,1738776650600,-500.0,0.00015185,2]
[351751515,1738776650610,-500.0,0.00015185,2]
[351751516,1738776650625,-500.0,0.00015185,2]
[351751517,1738776650635,-500.0,0.00015185,2]
[351751518,1738776650645,-500.0,0.00015185,2]
[351751519,1738776650654,-305.07237849,0.00015185,2]
[351751520,1738776650664,-151.0,0.00015186,2]
[351751521,1738776650674,-323.94059654,0.0001519,2]
[351751522,1738776650683,-323.94059654,0.0001519,2]
[351751523,1738776650693,-323.94059654,0.0001519,2]
[351751524,1738776650703,-323.94059654,0.0001519,2]
[351751525,1738776650713,-323.94059654,0.0001519,2]
[351751526,1738776650723,-323.94059654,0.0001519,2]
[351751527,1738776650733,-323.94059654,0.0001519,2]
[351751528,1738776650743,-323.94059654,0.0001519,2]
[351751529,1738776650753,-323.94059654,0.0001519,2]
[351751530,1738776650763,-323.94059654,0.0001519,2]
[351751531,1738776650773,-323.94059654,0.0001519,2]
[351751532,1738776650783,-323.94059654,0.0001519,2]
[351751533,1738776650796,-323.94059654,0.0001519,2]
[351751534,1738776650806,-323.94059654,0.0001519,2]
[351751535,1738776650817,-323.94059654,0.0001519,2]
[351751536,1738776650826,-323.94059654,0.0001519,2]
[351751537,1738776650836,-323.94059654,0.0001519,2]
[351751538,1738776650846,-323.94059654,0.0001519,2]
[351751539,1738776650856,-323.94059654,0.0001519,2]
[351751540,1738776650866,-323.94,0.0001519,2]
[351751541,1738776650876,-151.0,0.000152,2]
[351751542,1738776650887,-151.0,0.000152,2]
[351751543,1738776650896,-151.0,0.000152,2]
[351751544,1738776650906,-940.71468203,0.000152,2]
[351751545,1738776650916,-823.04434729,0.00015208,2]
[351751546,1738776650932,-246.79827923,0.00015233,2]
[351751547,1738776650942,-153.0,0.00015246,2]
[351751548,1738776650951,-153.0,0.00015246,2]
[351751549,1738776650961,-153.0,0.00015246,2]
[351751550,1738776650971,-153.0,0.00015246,2]
[351751551,1738776650981,-153.0,0.00015246,2]
[351751552,1738776650991,-153.0,0.00015246,2]
[351751553,1738776651002,-153.0,0.00015246,2]
[351751554,1738776651012,-153.0,0.00015246,2]
[351751555,1738776651022,-10263.0528554,0.0001529,2]
[351751556,1738776651031,-719.54,0.00015314,2]
[351751557,1738776651040,-536.03,0.00015314,2]
[351751558,1738776651050,-500.0,0.00015315,2]
[351751559,1738776651060,-15719.3,0.00015315,2]
[351751560,1738776651070,-500.0,0.00015315,2]
[351751561,1738776651080,-500.0,0.00015315,2]
[351751562,1738776651089,-6040.93,0.00015315,2]
[351751563,1738776651099,-7749.85,0.00015315,2]
[351751564,1738776651109,-3257.43,0.00015315,2]
[351751565,1738776651119,-500.0,0.00015315,2]
[351751566,1738776651128,-500.0,0.00015315,2]
[351751567,1738776651138,-2747.3,0.00015315,2]
[351751568,1738776651148,-1159.69,0.00015315,2]
[351751569,1738776651157,-563.66,0.00015315,2]
[351751570,1738776651167,-1065.67,0.00015315,2]
[351751571,1738776651176,-500.0,0.00015315,2]
[351751572,1738776651186,-500.0,0.00015315,2]
[351751573,1738776651195,-500.0,0.00015315,2]
[351751574,1738776651205,-500.0,0.00015315,2]
[351751575,1738776651215,-2935.36,0.00015315,2]
[351751576,1738776651225,-7301.02,0.00015315,2]
[351751577,1738776651235,-2783.65,0.00015315,2]
[351751578,1738776651245,-12318.66,0.00015315,2]
[351751579,1738776651255,-1277.13,0.00015315,2]
[351751580,1738776651265,-5521.3,0.00015315,2]
[351751581,1738776651275,-593.13,0.00015315,2]
[351751582,1738776651285,-586.6,0.00015315,2]
[351751583,1738776651295,-1399.48,0.00015315,2]
[351751584,1738776651304,-723.85,0.00015315,2]
[351751585,1738776651314,-500.0,0.00015315,2]
[351751586,1738776651324,-500.0,0.00015315,2]
[351751587,1738776651334,-2788.57,0.00015315,2]
[351751588,1738776651344,-8474.43,0.00015315,2]
[351751589,1738776651354,-1049.13,0.00015315,2]
[351751590,1738776651493,-693.24,0.00015315,2]
[351751591,1738776651511,-3418.3,0.00015315,2]
[351751592,1738776651522,-287.81413658,0.00015315,2]
[351751593,1738776651533,-3187.52,0.00015315,2]
[351751594,1738776651544,-500.0,0.00015315,2]
[351751595,1738776651555,-500.0,0.00015315,2]
[351751596,1738776651566,-500.0,0.00015315,2]
[351751597,1738776651576,-752.95,0.00015315,2]
[351751598,1738776651586,-1049.31,0.00015315,2]
[351751599,1738776651596,-500.0,0.00015315,2]
[351751600,1738776651606,-3010.99,0.00015315,2]
[351751601,1738776651616,-4068.89,0.00015315,2]
[351751602,1738776651626,-525.1974156,0.00015316,2]
[351751603,1738776651635,-1146.92,0.00015316,2]
[351751604,1738776651644,-3247.68,0.00015316,2]
[351751605,1738776651654,-500.0,0.00015316,2]
[351751606,1738776651663,-500.0,0.00015316,2]
[351751607,1738776651673,-530.16,0.00015316,2]
[351751608,1738776651682,-586.55,0.00015316,2]
[351751609,1738776651692,-2222.91,0.00015316,2]
[351751610,1738776651702,-548.66,0.00015316,2]
[351751611,1738776651711,-1056.72,0.00015316,2]
[351751612,1738776651721,-1710.19,0.00015316,2]
[351751613,1738776651730,-500.0,0.00015316,2]
[351751614,1738776651739,-734.81841051,0.00015316,2]
[351751615,1738776652071,-820.51158949,0.00015316,2]
[351751616,1738776652081,-500.0,0.00015316,2]
[351751617,1738776652090,-435.88017817,0.00015316,2]
[351751618,1738776652102,-64.11982183,0.00015316,2]
[351751619,1738776652111,-500.0,0.00015316,2]
[351751620,1738776652120,-1162.4,0.00015316,2]
[351751621,1738776652130,-1860.15,0.00015316,2]
[351751622,1738776652139,-1647.23,0.00015316,2]
[351751623,1738776652148,-500.0,0.00015316,2]
[351751624,1738776652158,-848.5,0.00015316,2]
[351751625,1738776652167,-500.0,0.00015316,2]
[351751626,1738776652176,-191.15388795,0.00015316,2]
[351751627,1738776652388,-500.07328576,0.00015178,2]
[351751628,1738776652810,-500.0,0.00015042,2]
[351751629,1738776652820,-153.0,0.00015178,2]
[351751630,1738776652829,-153.0,0.00015178,2]
[351751631,1738776652839,-224.75671424,0.00015178,2]
[351751632,1738776652849,-151.0,0.00015179,2]
[351751633,1738776652859,-151.0,0.0001518,2]
[351751634,1738776652869,-151.0,0.00015183,2]
[351751635,1738776652879,-724.83,0.00015315,2]
[351751636,1738776652888,-308.84611205,0.00015316,2]
[351751637,1738776652898,-500.0,0.00015316,2]
[351751638,1738776653038,-1776.65,0.00015316,2]
[351751639,1738776653048,-1617.65,0.00015316,2]
[351751640,1738776653058,-685.2,0.00015316,2]
[351751641,1738776653068,-538.45,0.00015316,2]
[351751642,1738776653077,-1100.93,0.00015316,2]
[351751643,1738776653087,-524.17210782,0.00015316,2]
[351751644,1738776653096,-2121.09,0.00015316,2]
[351751645,1738776653107,-1237.47,0.00015316,2]
[351751646,1738776653116,-2729.9,0.00015316,2]
[351751647,1738776653126,-1010.65,0.00015316,2]
[351751648,1738776653135,-500.0,0.00015316,2]
[351751649,1738776653145,-500.0,0.00015316,2]
[351751650,1738776653155,-1403.64,0.00015316,2]
[351751651,1738776653164,-500.0,0.00015316,2]
[351751652,1738776653174,-461.78918939,0.00015316,2]
[351751653,1738776653184,-500.0,0.00015316,2]
[351751654,1738776653193,-500.0,0.00015316,2]
[351751655,1738776653203,-500.0,0.00015316,2]
[351751656,1738776653212,-500.0,0.00015316,2]
[351751657,1738776653221,-1182.38,0.00015316,2]
[351751658,1738776653231,-500.0,0.00015316,2]
[351751659,1738776653240,-1545.5,0.00015316,2]
[351751660,1738776653250,-500.0,0.00015316,2]
[351751661,1738776653260,-500.0,0.00015316,2]
[351751662,1738776653269,-751.11,0.00015316,2]
[351751663,1738776653279,-692.17,0.00015316,2]
[351751664,1738776653290,-500.0,0.00015316,2]
[351751665,1738776653299,-500.0,0.00015316,2]
[351751666,1738776653308,-838.79,0.00015316,2]
[351751667,1738776653318,-500.0,0.00015316,2]
[351751668,1738776653328,-1047.74,0.00015316,2]
[351751669,1738776653337,-3507.36,0.00015316,2]
[351751670,1738776653346,-500.0,0.00015316,2]
[351751671,1738776653356,-500.0,0.00015316,2]
[351751672,1738776653365,-500.0,0.00015316,2]
[351751673,1738776653375,-687.68,0.00015316,2]
[351751674,1738776653384,-500.0,0.00015316,2]
[351751675,1738776653393,-9107.91,0.00015316,2]
[351751676,1738776653402,-500.0,0.00015316,2]
[351751677,1738776653411,-500.0,0.00015316,2]
[351751678,1738776653421,-1665.23,0.00015316,2]
[351751679,1738776653430,-348.89166637,0.00015316,2]
[351751680,1738776653440,-500.0,0.00015316,2]
[351751681,1738776653450,-750.8,0.00015316,2]
[351751682,1738776653459,-1189.23411216,0.00015316,2]
[351751683,1738776655991,1542.04563541,0.00014943,2]
[351751684,1738776688393,164.46761947,0.00014943,2]
[351751686,1738777036936,195418.66475936,0.000145,5]
[351751687,1738777036967,751000.0,0.000145,5]
[351751688,1738777036999,1000000.0,0.000145,5]
[351751689,1738777037031,74929.97043584,0.000145,5]
[351751690,1738777059949,321.787715,0.00013973,2]
[351751691,1738777403805,8786.138409,0.00013543,2]
[351751693,1738777499664,167.023064,0.00013699,2]
[351751715,1738777625072,157.869877,0.00013533,2]
[351751716,1738777625281,157.869877,0.00013541,2]
[351751717,1738777625507,157.869877,0.0001355,2]
[351751718,1738777625712,157.869877,0.00013558,2]
[351751719,1738777625972,157.869877,0.00013567,2]
[351751720,1738777626205,157.869877,0.00013575,2]
[351751721,1738777626737,157.869877,0.00013584,2]
[351751722,1738777626970,157.869877,0.00013592,2]
[351751723,1738777627433,157.869877,0.00013601,2]
[351751832,1738777832560,-500.0,0.00014164,2]
[351751835,1738777832574,-164.46761947,0.00014399,2]
[351751838,1738777832583,-198.30286316,0.00014399,2]
[351751841,1738777832593,-256.03679004,0.000144,2]
[351751844,1738777832603,-300.0,0.00014497,2]
[351751847,1738777832613,-689.55,0.00014498,2]
[351751850,1738777832622,-500.0,0.00014498,2]
[351751852,1738777832632,-500.0,0.00014498,2]
[351751855,1738777832641,-721.58,0.00014498,2]
[351751858,1738777832650,-500.0,0.00014498,2]
[351751860,1738777832660,-500.0,0.00014498,2]
[351751862,1738777832670,-500.0,0.00014498,2]
[351751865,1738777832680,-500.0,0.00014498,2]
[351751867,1738777832690,-500.0,0.00014498,2]
[351751869,1738777832700,-664.43,0.00014498,2]
[351751871,1738777832709,-500.0,0.00014498,2]
[351751873,1738777832719,-8720.52,0.00014498,2]
[351751875,1738777832728,-500.0,0.00014498,2]
[351751877,1738777832737,-500.0,0.00014498,2]
[351751879,1738777832747,-500.0,0.00014498,2]
[351751881,1738777832756,-500.0,0.00014498,2]
[351751883,1738777832768,-523.61,0.00014498,2]
[351751885,1738777832779,-465.94967999,0.00014498,2]
[351751888,1738777832801,-157.36397208,0.00014498,2]
[351751890,1738777832811,-232.31368914,0.00014498,2]
[351751892,1738777832825,-267.68631086,0.00014498,2]
[351751894,1738777832835,-2269.19533794,0.00014498,2]
[351751968,1738777840441,-12795.13466206,0.00014498,2]
[351751970,1738777840452,-560.22,0.00014498,2]
[351751972,1738777840461,-500.0,0.00014498,2]
[351751974,1738777840471,-500.0,0.00014498,2]
[351751976,1738777840481,-500.0,0.00014498,2]
[351751978,1738777840491,-501.49,0.00014498,2]
[351751980,1738777840501,-500.0,0.00014498,2]
[351751982,1738777840510,-500.0,0.00014498,2]
[351751984,1738777840520,-500.0,0.00014498,2]
[351751986,1738777840530,-500.0,0.00014498,2]
[351751988,1738777840540,-500.0,0.00014498,2]
[351751990,1738777840549,-7426.94,0.00014498,2]
[351751992,1738777840559,-500.0,0.00014498,2]
[351751994,1738777840569,-500.0,0.00014498,2]
[351751996,1738777840583,-3121.7,0.00014498,2]
[351751998,1738777840592,-500.0,0.00014498,2]
[351752000,1738777840603,-500.0,0.00014498,2]
[351752002,1738777840612,-500.0,0.00014498,2]
[351752004,1738777840623,-500.0,0.00014498,2]
[351752006,1738777840632,-500.0,0.00014498,2]
[351752008,1738777840643,-2632.83,0.00014498,2]
[351752010,1738777840653,-1111.37,0.00014498,2]
[351752012,1738777840663,-502.54,0.00014498,2]
[351752014,1738777840673,-540.18,0.00014498,2]
[351752016,1738777840682,-500.0,0.00014498,2]
[351752018,1738777840692,-527.87139466,0.00014498,2]
[351752020,1738777840702,-1021.26,0.00014498,2]
[351752022,1738777840711,-500.0,0.00014498,2]
[351752024,1738777840722,-500.0,0.00014498,2]
[351752026,1738777840731,-500.0,0.00014498,2]
[351752028,1738777840741,-500.0,0.00014498,2]
[351752030,1738777840751,-895.97,0.00014498,2]
[351752032,1738777840761,-698.84,0.00014498,2]
[351752034,1738777840770,-500.0,0.00014498,2]
[351752036,1738777840780,-500.0,0.00014498,2]
[351752038,1738777840789,-500.0,0.00014498,2]
[351752040,1738777840799,-2813.05,0.00014498,2]
[351752042,1738777840809,-500.0,0.00014498,2]
[351752044,1738777840818,-500.0,0.00014498,2]
[351752046,1738777840830,-2667.67,0.00014498,2]
[351752048,1738777840839,-6996.81,0.00014498,2]
[351752050,1738777840848,-500.0,0.00014498,2]
[351752052,1738777840858,-11805.38,0.00014498,2]
[351752054,1738777840868,-5291.25,0.00014498,2]
[351752056,1738777840878,-568.41,0.00014498,2]
[351752058,1738777840887,-500.0,0.00014498,2]
[351752060,1738777840897,-673.11,0.00014498,2]
[351752062,1738777840907,-1223.91,0.00014498,2]
[351752065,1738777840917,-500.0,0.00014498,2]
[351752066,1738777840927,-2040.92,0.00014498,2]
[351752068,1738777840936,-500.0,0.00014498,2]
[351752070,1738777840946,-643.4,0.00014498,2]
[351752072,1738777840955,-562.16,0.00014498,2]
[351752075,1738777840965,-1790.06,0.00014498,2]
[351752077,1738777840975,-500.0,0.00014498,2]
[351752079,1738777840984,-500.0,0.00014498,2]
[351752081,1738777840994,-693.68,0.00014498,2]
[351752083,1738777841002,-500.0,0.00014498,2]
[351752085,1738777841012,-500.0,0.00014498,2]
[351752087,1738777841021,-2672.38,0.00014498,2]
[351752089,1738777841031,-500.0,0.00014498,2]
[351752091,1738777841040,-500.0,0.00014498,2]
[351752093,1738777841049,-1005.42,0.00014498,2]
[351752095,1738777841059,-329.93248114,0.00014498,2]
[351752097,1738777841068,-3169.02,0.00014498,2]
[351752099,1738777841080,-8121.33,0.00014498,2]
[351752101,1738777841089,-500.0,0.00014498,2]
[351752103,1738777841099,-500.0,0.00014498,2]
[351752105,1738777841109,-500.0,0.00014498,2]
[351752107,1738777841118,-4175.43,0.00014498,2]
[351752109,1738777841128,-500.0,0.00014498,2]
[351752111,1738777841137,-500.0,0.00014498,2]
[351752113,1738777841147,-475.30633217,0.00014498,2]
[351752115,1738777841155,-500.0,0.00014498,2]
[351752117,1738777841165,-664.36,0.00014498,2]
[351752119,1738777841174,-3054.71,0.00014498,2]
[351752121,1738777841183,-500.0,0.00014498,2]
[351752123,1738777841192,-500.0,0.00014498,2]
[351752125,1738777841201,-500.0,0.00014498,2]
[351752127,1738777841211,-500.0,0.00014498,2]
[351752129,1738777841220,-500.0,0.00014498,2]
[351752131,1738777841229,-318.93423639,0.00014498,2]
[351752133,1738777841239,-500.0,0.00014498,2]
[351752135,1738777841248,-500.0,0.00014498,2]
[351752137,1738777841257,-1355.36,0.00014498,2]
[351752139,1738777841267,-691.51,0.00014498,2]
[351752141,1738777841277,-500.0,0.00014498,2]
[351752143,1738777841286,-500.0,0.00014498,2]
[351752145,1738777841295,-718.47,0.00014498,2]
[351752147,1738777841305,-678.83,0.00014498,2]
[351752149,1738777841314,-2257.85016492,0.00014499,2]
[351752151,1738777841323,-513.7,0.00014499,2]
[351752153,1738777841342,-500.0,0.00014499,2]
[351752155,1738777841352,-1099.13,0.00014499,2]
[351752157,1738777841361,-500.0,0.00014499,2]
[351752159,1738777841370,-3112.36,0.00014499,2]
[351752161,1738777841381,-500.0,0.00014499,2]
[351752163,1738777841391,-508.07,0.00014499,2]
[351752165,1738777841400,-500.0,0.00014499,2]
[351752167,1738777841411,-562.11,0.00014499,2]
[351752169,1738777841421,-2130.28,0.00014499,2]
[351752171,1738777841431,-525.8,0.00014499,2]
[351752173,1738777841441,-1012.69,0.00014499,2]
[351752175,1738777841451,-1638.93,0.00014499,2]
[351752177,1738777841460,-500.0,0.00014499,2]
[351752179,1738777841470,-352.54752496,0.00014499,2]
[351752181,1738777841479,-1456.34,0.00014499,2]
[351752183,1738777841488,-500.0,0.00014499,2]
[351752185,1738777841498,-501.74,0.00014499,2]
[351752204,1738777841507,-501.74,0.00014499,2]
[351752207,1738777841683,-501.74,0.00014499,2]
[351752209,1738777841692,-501.74,0.00014499,2]
[351752211,1738777841701,-501.74,0.00014499,2]
[351752213,1738777841711,-501.74,0.00014499,2]
[351752215,1738777841720,-501.74,0.00014499,2]
[351752217,1738777841730,-501.74,0.00014499,2]
[351752219,1738777841740,-501.74,0.00014499,2]
[351752221,1738777841749,-501.74,0.00014499,2]
[351752223,1738777841759,-501.74,0.00014499,2]
[351752225,1738777841769,-501.74,0.00014499,2]
[351752227,1738777841778,-501.74,0.00014499,2]
[351752229,1738777841788,-501.74,0.00014499,2]
[351752231,1738777841797,-501.74,0.00014499,2]
[351752233,1738777841807,-501.74,0.00014499,2]
[351752235,1738777841827,-501.74,0.00014499,2]
[351752237,1738777841836,-501.74,0.00014499,2]
[351752239,1738777841846,-501.74,0.00014499,2]
[351752241,1738777841856,-501.74,0.00014499,2]
[351752243,1738777841865,-501.74,0.00014499,2]
[351752245,1738777841875,-501.74,0.00014499,2]
[351752247,1738777841884,-501.74,0.00014499,2]
[351752249,1738777841894,-501.88097127,0.00014499,2]
[351752252,1738777841903,-2608.02,0.00014499,2]
[351752254,1738777841913,-500.0,0.00014499,2]
[351752256,1738777841923,-630.93,0.00014499,2]
[351752257,1738777841932,-500.0,0.00014499,2]
[351752260,1738777841942,-1705.14,0.00014499,2]
[351752262,1738777841951,-500.0,0.00014499,2]
[351752264,1738777841962,-500.0,0.00014499,2]
[351752266,1738777841971,-1509.96,0.00014499,2]
[351752268,1738777841980,-1628.59,0.00014499,2]
[351752270,1738777841992,-777.8,0.00014499,2]
[351752272,1738777842001,-500.0,0.00014499,2]
[351752274,1738777842010,-500.0,0.00014499,2]
[351752276,1738777842019,-500.0,0.00014499,2]
[351752278,1738777842029,-1482.84,0.00014499,2]
[351752280,1738777842038,-500.0,0.00014499,2]
[351752282,1738777842048,-1134.35,0.00014499,2]
[351752284,1738777842057,-628.1,0.00014499,2]
[351752286,1738777842067,-2502.41,0.00014499,2]
[351752288,1738777842076,-1009.18,0.00014499,2]
[351752290,1738777842086,-1944.33,0.00014499,2]
[351752292,1738777842097,-926.43,0.00014499,2]
[351752294,1738777842106,-500.0,0.00014499,2]
[351752296,1738777842116,-500.0,0.00014499,2]
[351752298,1738777842125,-500.0,0.00014499,2]
[351752300,1738777842134,-500.0,0.00014499,2]
[351752302,1738777842143,-500.0,0.00014499,2]
[351752304,1738777842153,-500.0,0.00014499,2]
[351752306,1738777842162,-459.21395355,0.00014499,2]
[351752308,1738777842171,-500.0,0.00014499,2]
[351752310,1738777842181,-1072.22,0.00014499,2]
[351752312,1738777842192,-500.0,0.00014499,2]
[351752315,1738777842201,-500.0,0.00014499,2]
[351752316,1738777842210,-500.0,0.00014499,2]